bitfinex/quotes_SOLUSD_20240920
["timestamp","ask_amount","ask_price","bid_price","bid_amount"]
[1726812130393,22.4896,148.9,148.85,6.7177]
[1726812130796,22.4896,148.9,148.84,10.05447439]
[1726812131607,6.7164,148.89,148.84,10.05447439]
[1726812132300,15.7736,148.9,148.84,3.33597439]
[1726812132301,6.7169,148.88,148.84,3.33597439]
[1726812132983,6.7163,148.89,148.84,10.05457439]
[1726812134289,6.7169,148.88,148.84,3.33597439]
[1726812134890,6.7173,148.87,148.83,0.1340128]
[1726812135199,6.7177,148.86,148.83,0.1340128]
[1726812136600,6.7182,148.85,148.83,0.1340128]
[1726812139017,21.9958,148.84,148.83,0.1340128]
[1726812139199,46.149154,148.84,148.83,0.1340128]
[1726812139516,6.7199,148.82,148.78,3.33775917]
[1726812139813,6.72,148.81,148.78,3.33775917]
[1726812140009,6.72,148.81,148.77,20.46536877]
[1726812140214,6.72,148.81,148.77,17.1276096]
[1726812140993,6.72,148.81,148.77,20.46600338]
[1726812141603,21.9962,148.84,148.77,21.81035999]
[1726812141812,21.9962,148.84,148.79,6.7208]
[1726812143497,15.2772,148.84,148.79,6.7208]
[1726812143706,15.2772,148.84,148.79,3.33839378]
[1726812143908,15.2772,148.84,148.8,6.7202]
[1726812144115,15.2772,148.84,148.81,6.7198]
[1726812145301,15.2772,148.84,148.8,10.05879378]
[1726812145503,21.9958,148.84,148.8,3.33839378]
[1726812145822,15.2772,148.84,148.8,10.05869378]
[1726812146318,15.2772,148.84,148.8,3.33839378]
[1726812146503,15.2772,148.84,148.8,6.72]
[1726812147309,15.2772,148.84,148.8,10.05764331]
[1726812147526,21.9959,148.84,148.8,10.05764331]
[1726812148028,15.2772,148.84,148.81,6.7198]
[1726812148240,15.2772,148.84,148.8,3.33764331]
[1726812148427,15.2772,148.84,148.79,16.8013]
[1726812148619,15.2772,148.84,148.82,6.7191]
[1726812149626,15.2772,148.84,148.81,23.5189]
[1726812149816,15.2772,148.84,148.81,16.799]
[1726812150217,15.2772,148.84,148.81,23.5188]
[1726812151214,22.0374,148.88,148.84,6.7185]
[1726812151408,22.0374,148.88,148.86,6.7176]
[1726812151610,15.6074,148.88,148.86,6.7176]
[1726812152835,6.7159,148.9,148.85,6.7181]
[1726812153413,23.2531,148.91,148.86,6.7175]
[1726812154913,6.7159,148.9,148.86,6.7175]
[1726812155433,6.7168,148.88,148.83,23.961773]
[1726812155620,6.7177,148.87,148.83,7.164773]
[1726812155813,44.153354,148.9,148.83,7.164773]
[1726812155814,20.0,148.89,148.83,7.164773]
[1726812156109,40.943754,148.9,148.83,7.164773]
[1726812156110,6.7185,148.85,148.83,7.164773]
[1726812156316,6.7181,148.85,148.83,7.164773]
[1726812156520,6.7186,148.84,148.83,7.164773]
[1726812156727,23.03857,148.84,148.83,7.164773]
[1726812157018,22.6621,148.84,148.83,7.164773]
[1726812157325,15.9435,148.84,148.83,7.164773]
[1726812158514,22.6621,148.84,148.83,7.164773]
[1726812159323,22.78759,148.84,148.83,7.164773]
[1726812159625,23.03857,148.84,148.83,7.164773]
[1726812160737,43.03857,148.84,148.83,7.164773]
[1726812160929,43.03857,148.84,148.8,1.0]
[1726812161249,0.12549,148.82,148.8,1.0]
[1726812161737,6.7199,148.81,148.8,1.0]
[1726812161928,6.84539,148.81,148.8,1.0]
[1726812162842,6.97088,148.81,148.8,1.0]
[1726812163339,50.873254,148.81,148.8,1.0]
[1726812165620,6.7209,148.79,148.77,0.3233096]
[1726812165817,0.12549,148.78,148.77,0.3233096]
[1726812167932,0.25098,148.78,148.77,0.3233096]
[1726812168441,0.12549,148.78,148.77,0.3233096]
[1726812170344,0.25098,148.78,148.77,0.3233096]
[1726812170839,6.7195,148.82,148.77,0.3233096]
[1726812171226,6.54181645,148.82,148.78,6.7213]
[1726812171429,6.719,148.83,148.78,6.7213]
[1726812172051,6.7196,148.82,148.77,7.0450096]
[1726812172246,6.72,148.81,148.77,7.0450096]
[1726812172547,6.7195,148.82,148.77,7.0450096]
[1726812172751,0.12549,148.81,148.77,7.0450096]
[1726812173346,6.84549,148.81,148.77,7.0450096]
[1726812173546,6.84549,148.81,148.77,0.3233096]
[1726812173547,6.7209,148.79,148.77,0.3233096]
[1726812175920,6.84599,148.8,148.77,0.3233096]
[1726812176431,0.25098,148.79,148.77,0.3233096]
[1726812177565,6.72,148.81,148.77,0.3233096]
[1726812180351,0.12549,148.82,148.77,0.3233096]
[1726812180659,7.09777,148.78,148.77,0.3233096]
[1726812183271,6.7208,148.79,148.77,0.3233096]
[1726812184253,6.7196,148.82,148.77,7.0450096]
[1726812185770,15.9435,148.84,148.77,7.0450096]
[1726812185771,6.7191,148.83,148.78,6.7212]
[1726812185991,23.5126,148.88,148.77,0.3233096]
[1726812185992,6.718,148.86,148.81,6.7199]
[1726812186284,33.5712,148.94,148.79,8.09422982]
[1726812186453,7.00997852,148.92,148.81,20.0]
[1726812186777,6.7159,148.9,148.84,6.7181]
[1726812186957,6.7159,148.9,148.83,16.7967]
[1726812187772,6.7159,148.9,148.84,6.7185]
[1726812188273,6.7159,148.9,148.83,16.7967]
[1726812188274,6.7159,148.9,148.85,6.7181]
[1726812189178,6.7155,148.91,148.85,6.7181]
[1726812189474,6.7159,148.9,148.85,6.7181]
[1726812190653,26.96638,148.91,148.85,6.7181]
[1726812190856,0.12549,148.9,148.85,6.7181]
[1726812191172,16.4707854,148.93,148.86,1.34357227]
[1726812191475,16.4707854,148.93,148.84,33.5917]
[1726812191476,0.1558854,148.93,148.89,6.7163]
[1726812191672,6.8703854,148.93,148.88,16.791]
[1726812192053,6.7154,148.92,148.86,12.8342]
[1726812192255,0.1558854,148.93,148.86,12.8342]
[1726812192256,0.1558854,148.93,148.86,6.1168]
[1726812192565,0.1558854,148.93,148.88,23.5086]
[1726812193154,6.8705854,148.93,148.88,16.7919]
[1726812193655,6.84049,148.92,148.86,6.1168]
[1726812194682,0.12549,148.91,148.85,20.0]
[1726812194887,6.7163,148.9,148.85,20.0]
[1726812195480,6.7163,148.9,148.84,23.5142]
[1726812195781,6.7164,148.89,148.84,23.5142]
[1726812196077,6.7167,148.89,148.83,23.0693]
[1726812196272,0.25098,148.9,148.82,6.1957819]
[1726812196273,0.12549,148.87,148.82,6.1957819]
[1726812196478,0.25098,148.87,148.82,6.8167819]
[1726812197370,6.7183,148.85,148.82,0.0976819]
[1726812198467,6.7168,148.88,148.82,0.0976819]
[1726812198779,6.1269,148.9,148.82,0.0976819]
[1726812198780,0.25098,148.9,148.84,6.7185]
[1726812198957,36.5408,148.91,148.84,6.7185]
[1726812199278,6.7167,148.89,148.84,6.7185]
[1726812199869,6.7168,148.88,148.83,16.7976]
[1726812201477,6.7168,148.88,148.83,23.5165]
[1726812205576,0.12549,148.89,148.82,0.0976819]
[1726812205791,0.25098,148.88,148.82,0.0976819]
[1726812205974,0.12549,148.87,148.82,0.0976819]
[1726812206471,6.719,148.83,148.82,0.0976819]
[1726812206979,6.7186,148.84,148.82,0.0976819]
[1726812209084,6.84369,148.85,148.82,0.0976819]
[1726812209281,0.25098,148.84,148.82,0.0976819]
[1726812214585,0.25098,148.84,148.82,6.8167819]
[1726812214797,0.25098,148.84,148.82,0.0976819]
[1726812214969,7.00599578,148.9,148.82,0.0976819]
[1726812215376,6.035,148.92,148.82,0.0976819]
[1726812215565,6.8707854,148.93,148.87,6.7169]
[1726812216390,0.1558854,148.93,148.89,6.7163]
[1726812217594,0.1558854,148.93,148.87,16.792]
[1726812217595,0.1558854,148.93,148.9,6.7156]
[1726812217796,0.1558854,148.93,148.87,16.792]
[1726812217797,0.1558854,148.93,148.89,6.7163]
[1726812218172,0.1558854,148.93,148.88,6.7167]
[1726812218798,0.37647,148.92,148.87,16.792]
[1726812219096,7.09147,148.92,148.87,6.7172]
[1726812220285,0.1558854,148.93,148.86,1.34338455]
[1726812220603,0.37647,148.92,148.88,6.7164]
[1726812220896,0.37647,148.92,148.89,6.75]
[1726812221894,0.37647,148.92,148.88,6.75]
[1726812222278,7.09147,148.92,148.88,6.75]
[1726812224007,0.37647,148.9,148.89,6.75]
[1726812224299,0.25098,148.91,148.89,6.75]
[1726812225000,0.25098,148.91,148.88,6.75]
[1726812225199,0.1558854,148.93,148.89,12.8244]
[1726812225406,0.1558854,148.93,148.92,6.715]
[1726812228797,0.1558854,148.93,148.92,58.58459955]
[1726812229298,0.1558854,148.93,148.92,57.618354]
[1726812230079,8.54e-05,148.93,148.92,57.618354]
[1726812230592,8.54e-05,148.93,148.92,57.492864]
[1726812230902,8.54e-05,148.93,148.92,58.9607793]
[1726812231496,8.54e-05,148.93,148.92,57.618354]
[1726812238506,8.54e-05,148.93,148.92,33.465]
[1726812239912,8.54e-05,148.93,148.92,57.241884]
[1726812242509,8.54e-05,148.93,148.92,50.491884]
[1726812242689,8.54e-05,148.93,148.91,6.7153]
[1726812243013,6.715,148.92,148.86,23.511]
[1726812243188,6.715,148.92,148.86,16.7934]
[1726812243391,0.1255754,148.93,148.86,16.7934]
[1726812243899,0.12549,148.91,148.86,16.7934]
[1726812244417,0.12549,148.91,148.87,6.7171]
[1726812244609,16.4491,148.9,148.86,16.7934]
[1726812245287,16.4491,148.9,148.82,16.8958819]
[1726812245288,0.37647,148.89,148.82,16.8958819]
[1726812245621,24.153354,148.87,148.82,0.2534819]
[1726812245912,20.0,148.88,148.82,0.2534819]
[1726812245913,6.7187,148.84,148.82,0.2534819]
[1726812246410,0.12549,148.84,148.82,0.2534819]
[1726812248011,20.0,148.88,148.82,0.2534819]
[1726812248209,30.870754,148.87,148.82,0.2534819]
[1726812249204,6.7177,148.86,148.82,0.2534819]
[1726812249404,0.37647,148.85,148.82,0.2534819]
[1726812249787,24.153354,148.85,148.82,0.2534819]
[1726812249991,6.719,148.83,148.82,0.2534819]
[1726812250315,0.25098,148.83,148.82,0.2534819]
[1726812250689,0.37647,148.83,148.82,0.2534819]
[1726812252624,7.09547,148.83,148.82,0.2534819]
[1726812252799,36.888454,148.83,148.82,0.2534819]
[1726812253002,53.419554,148.83,148.82,0.2534819]
[1726812254313,73.419554,148.83,148.82,0.2534819]
[1726812254501,53.419554,148.83,148.82,0.2534819]
[1726812254822,73.419554,148.83,148.82,0.2534819]
[1726812256900,22.5472,148.83,148.82,0.2534819]
[1726812257994,21.5809,148.87,148.82,0.2534819]
[1726812259120,28.2986,148.87,148.82,0.2534819]
[1726812259300,6.7177,148.86,148.82,0.2534819]
[1726812260208,28.2982,148.87,148.82,6.9728819]
[1726812260413,0.12549,148.86,148.82,6.9728819]
[1726812261029,6.84319,148.86,148.82,0.2534819]
[1726812261823,6.7181,148.85,148.82,0.2534819]
[1726812262203,6.7187,148.84,148.82,0.2534819]
[1726812265029,30.872354,148.83,148.82,0.2534819]
[1726812266331,20.0,148.86,148.82,0.2534819]
[1726812266639,6.7178,148.86,148.82,17.0514819]
[1726812267233,28.2982,148.87,148.82,23.7708819]
[1726812267417,6.7177,148.86,148.82,17.0514819]
[1726812268534,0.12549,148.86,148.82,23.7708819]
[1726812268724,30.872354,148.83,148.82,0.2534819]
[1726812274549,6.7208,148.79,148.78,0.2535673]
[1726812274753,7.09727,148.79,148.78,0.2535673]
[1726812275052,7.09597,148.82,148.78,0.2535673]
[1726812275257,0.37647,148.82,148.78,0.2535673]
[1726812276148,7.09607,148.82,148.78,17.0562673]
[1726812276355,6.97058,148.82,148.78,17.0562673]
[1726812277444,6.72,148.81,148.78,0.2535673]
[1726812277658,6.7204,148.8,148.78,0.2535673]
[1726812277949,0.12549,148.81,148.78,0.2535673]
[1726812277950,6.97178,148.79,148.78,0.2535673]
[1726812278256,7.09727,148.79,148.78,0.2535673]
[1726812281750,6.7206,148.8,148.78,0.2535673]
[1726812284633,6.7208,148.79,148.78,0.2535673]
[1726812284834,7.09727,148.79,148.78,0.2535673]
[1726812286059,30.874154,148.79,148.78,0.2535673]
[1726812288349,30.874154,148.79,148.72,3.69592081]
[1726812288350,6.7229,148.75,148.72,3.69592081]
[1726812288552,6.7229,148.75,148.72,0.3562859]
[1726812289133,6.7223,148.76,148.72,0.3562859]
[1726812289849,6.7226,148.75,148.72,0.3562859]
[1726812297163,0.12549,148.76,148.72,0.3562859]
[1726812297364,0.12549,148.75,148.72,0.3562859]
[1726812297957,6.84819,148.75,148.72,0.3562859]
[1726812300474,6.7227,148.75,148.72,0.3562859]
[1726812302363,6.84779,148.76,148.72,0.3562859]
[1726812302550,6.7216,148.78,148.73,6.7232]
[1726812303067,6.7218,148.77,148.73,6.7232]
[1726812303273,6.7213,148.78,148.73,6.7232]
[1726812305655,6.7224,148.76,148.72,17.1656859]
[1726812305860,0.12549,148.78,148.72,17.1656859]
[1726812305861,6.7226,148.75,148.72,17.1656859]
[1726812306062,6.7226,148.75,148.72,0.3562859]
[1726812308214,6.7235,148.73,148.72,0.3562859]
[1726812308392,30.876854,148.73,148.72,0.3562859]
[1726812308562,50.876854,148.73,148.72,0.3562859]
[1726812309462,50.876854,148.73,148.68,0.322026]
[1726812309463,7.10187,148.69,148.68,0.322026]
[1726812309991,0.37647,148.71,148.68,0.322026]
[1726812311381,6.7249,148.7,148.68,0.322026]
[1726812311578,6.7254,148.69,148.68,0.322026]
[1726812311757,7.10187,148.69,148.68,0.322026]
[1726812313187,30.878754,148.69,148.68,0.322026]
[1726812313366,50.878754,148.69,148.68,0.322026]
[1726812313689,6.7249,148.7,148.68,0.322026]
[1726812313986,0.12549,148.7,148.68,0.322026]
[1726812314864,6.85039,148.7,148.68,0.322026]
[1726812316490,6.7248,148.71,148.68,0.322026]
[1726812317670,30.878754,148.69,148.68,0.322026]
[1726812318065,50.878754,148.69,148.68,0.322026]
[1726812318263,0.25098,148.69,148.68,0.322026]
[1726812318683,6.97638,148.69,148.68,0.322026]
[1726812319763,30.878754,148.69,148.68,0.322026]
[1726812320177,50.878754,148.69,148.68,0.322026]
[1726812320393,26.97638,148.69,148.68,0.322026]
[1726812320703,6.7249,148.7,148.68,0.322026]
[1726812320996,50.627774,148.69,148.68,0.322026]
[1726812321994,50.878754,148.69,148.68,0.322026]
[1726812324081,50.878754,148.69,148.63,0.3562859]
[1726812324082,0.12549,148.64,148.63,0.3562859]
[1726812324492,7.10407,148.64,148.63,0.3562859]
[1726812325083,6.98038,148.6,148.59,0.322026]
[1726812325280,7.10587,148.6,148.59,0.322026]
[1726812326471,30.882754,148.6,148.59,0.322026]
[1726812326884,50.882754,148.6,148.59,0.322026]
[1726812327897,20.37647,148.6,148.59,0.322026]
[1726812328098,27.10587,148.6,148.59,0.322026]
[1726812328403,50.882754,148.6,148.59,0.322026]
[1726812329720,50.882754,148.6,148.54,0.3562859]
[1726812329721,44.153354,148.59,148.54,0.3562859]
[1726812330221,0.25098,148.55,148.54,0.3562859]
[1726812330592,6.98268,148.55,148.54,0.3562859]
[1726812331498,6.98268,148.55,148.54,0.1649316]
[1726812331920,30.885054,148.55,148.54,0.1649316]
[1726812332434,0.25098,148.55,148.54,0.1649316]
[1726812334110,23.776884,148.59,148.54,0.1649316]
[1726812334111,6.7307,148.58,148.54,0.1649316]
[1726812334424,16.8235,148.61,148.54,6.8970316]
[1726812334425,0.12549,148.59,148.54,6.8970316]
[1726812334622,6.7305,148.58,148.54,16.9952316]
[1726812334914,0.25098,148.57,148.54,16.9952316]
[1726812335990,0.12549,148.57,148.54,16.9952316]
[1726812336197,6.7294,148.61,148.56,6.7312]
[1726812336818,6.6,148.63,148.54,33.6532316]
[1726812337413,24.153354,148.61,148.54,33.6532316]
[1726812337613,0.12549,148.59,148.54,16.8229316]
[1726812337928,6.7304,148.58,148.54,16.8229316]
[1726812338238,0.12549,148.59,148.54,16.8229316]
[1726812338239,6.7299,148.59,148.54,23.5549316]
[1726812338429,0.12549,148.58,148.55,6.7317]
[1726812339224,0.25098,148.59,148.56,6.7311]
[1726812339225,0.12549,148.59,148.56,6.7311]
[1726812339408,23.776884,148.61,148.56,6.7311]
[1726812339409,0.25098,148.61,148.56,6.7311]
[1726812339603,0.12549,148.61,148.56,6.7311]
[1726812339922,6.85479,148.61,148.56,6.7311]
[1726812340797,6.7275,148.65,148.59,6.7298]
[1726812340999,6.7273,148.65,148.57,16.8262]
[1726812341212,6.7273,148.65,148.6,6.7294]
[1726812341611,6.7276,148.64,148.58,6.73]
[1726812341823,16.0876,148.66,148.57,23.5569]
[1726812342034,0.37647,148.61,148.57,16.8262]
[1726812342237,0.37647,148.61,148.57,23.5569]
[1726812342413,7.10557,148.61,148.57,16.8262]
[1726812342619,7.10557,148.61,148.54,16.8229316]
[1726812342620,0.37647,148.61,148.54,33.6530316]
[1726812342930,0.37647,148.61,148.55,20.0]
[1726812343309,6.7298,148.6,148.55,26.7313]
[1726812346642,6.7308,148.58,148.54,23.5550316]
[1726812347345,6.7308,148.58,148.54,16.8229316]
[1726812347737,6.73,148.59,148.54,23.5550316]
[1726812347927,6.73,148.59,148.55,6.7316]
[1726812347928,0.12549,148.59,148.55,6.7316]
[1726812348341,0.25098,148.59,148.55,6.7316]
[1726812350021,6.98088,148.59,148.55,6.7316]
[1726812351138,0.25098,148.59,148.55,6.7316]
[1726812351442,6.85489,148.6,148.56,6.7312]
[1726812351854,0.12549,148.59,148.56,6.7312]
[1726812352431,0.37647,148.59,148.54,0.1649316]
[1726812353435,0.25098,148.57,148.54,6.8970316]
[1726812353829,0.25098,148.57,148.54,0.1649316]
[1726812354030,6.7308,148.57,148.54,0.1649316]
[1726812354234,0.12549,148.56,148.54,0.1649316]
[1726812355827,6.7308,148.57,148.54,0.1649316]
[1726812358029,6.98138,148.58,148.54,0.1649316]
[1726812358227,6.98138,148.58,148.54,6.8969316]
[1726812359538,6.85649,148.57,148.54,0.1649316]
[1726812359937,6.7313,148.56,148.54,0.1649316]
[1726812360429,0.25098,148.55,148.54,0.1649316]
[1726812360631,6.7308,148.57,148.54,0.1649316]
[1726812361953,16.2397,148.62,148.54,0.1649316]
[1726812362354,6.7295,148.6,148.54,23.7263316]
[1726812362665,6.7295,148.6,148.55,6.7315]
[1726812363454,0.12549,148.59,148.55,6.7315]
[1726812364640,6.7295,148.6,148.56,6.7312]
[1726812364867,0.12549,148.6,148.56,6.7312]
[1726812365040,6.98750573,148.65,148.57,36.4874]
[1726812365244,32.9758,148.71,148.6,12.19680646]
[1726812365444,6.7258,148.69,148.62,6.7283]
[1726812365748,32.9758,148.71,148.62,6.7283]
[1726812365749,6.7261,148.68,148.62,6.7283]
[1726812366347,6.7268,148.66,148.61,16.8221]
[1726812366869,0.25098,148.65,148.61,16.8221]
[1726812367245,6.7272,148.65,148.61,16.8221]
[1726812367446,0.25098,148.66,148.59,6.7298]
[1726812367447,7.10417,148.64,148.59,6.7298]
[1726812367641,6.85319,148.64,148.58,13.2389]
[1726812368369,6.97908,148.63,148.58,13.2389]
[1726812368570,6.97908,148.63,148.58,6.7303]
[1726812372675,0.25098,148.61,148.54,6.8194316]
[1726812372852,0.12549,148.6,148.54,16.9951316]
[1726812374145,0.12549,148.6,148.54,20.33989828]
[1726812374343,0.12549,148.59,148.55,6.7316]
[1726812375445,0.12549,148.61,148.56,16.8272]
[1726812375875,0.12549,148.61,148.57,6.7304]
[1726812376174,6.97918,148.63,148.59,6.7299]
[1726812377176,6.85369,148.63,148.59,6.7299]
[1726812377473,15.6731,148.69,148.6,1.34578004]
[1726812377649,15.6731,148.69,148.59,16.8248]
[1726812378167,6.7266,148.67,148.62,6.7284]
[1726812378873,0.12549,148.66,148.62,6.7284]
[1726812379171,6.85219,148.66,148.61,6.7289]
[1726812379474,6.85219,148.66,148.59,16.8248]
[1726812379475,6.7276,148.64,148.59,16.8248]
[1726812380347,6.7276,148.64,148.6,6.7294]
[1726812380663,6.7276,148.64,148.59,23.5546]
[1726812383350,0.12549,148.63,148.59,23.5546]
[1726812384966,6.85359,148.63,148.59,16.8248]
[1726812385366,6.85359,148.63,148.58,0.062213]
[1726812385367,6.97948,148.62,148.58,0.062213]
[1726812385575,6.85449,148.61,148.58,0.062213]
[1726812385792,0.12549,148.61,148.58,0.062213]
[1726812386273,6.729,148.61,148.58,0.062213]
[1726812386473,0.25098,148.62,148.58,0.062213]
[1726812386685,6.97958,148.62,148.58,6.792513]
[1726812386979,20.0,148.66,148.58,16.887313]
[1726812387209,6.7278,148.64,148.59,6.7295]
[1726812387494,6.7271,148.66,148.58,16.887313]
[1726812387675,6.7272,148.65,148.58,16.887313]
[1726812387870,6.7276,148.64,148.6,6.7292]
[1726812388379,7.10467,148.63,148.58,23.617413]
[1726812388581,6.97918,148.63,148.58,23.617413]
[1726812388877,6.97918,148.63,148.59,6.7299]
[1726812389302,6.97918,148.63,148.58,23.617513]
[1726812390386,0.12549,148.62,148.58,0.062213]
[1726812391699,6.7295,148.6,148.58,0.062213]
[1726812392197,6.7295,148.6,148.56,8.294508]
[1726812392405,6.7291,148.61,148.56,6.9484508]
[1726812393885,0.12549,148.62,148.56,0.2172508]
[1726812393886,6.7295,148.6,148.56,0.2172508]
[1726812394481,6.7299,148.59,148.56,0.2172508]
[1726812395375,6.7303,148.58,148.56,0.2172508]
[1726812396095,6.98178,148.57,148.56,0.2172508]
[1726812396483,6.7304,148.58,148.56,0.2172508]
[1726812396682,6.7308,148.57,148.56,0.2172508]
[1726812397307,30.884154,148.57,148.56,0.2172508]
[1726812397492,30.884154,148.57,148.54,0.1027186]
[1726812397493,7.10817,148.55,148.54,0.1027186]
[1726812397818,65.921254,148.55,148.54,0.1027186]
[1726812397975,0.37647,148.51,148.5,0.3193647]
[1726812398180,0.12549,148.51,148.5,0.3193647]
[1726812398994,6.85899,148.51,148.5,0.3193647]
[1726812399197,6.7331,148.52,148.5,0.3193647]
[1726812399683,30.886854,148.51,148.5,0.3193647]
[1726812401207,7.10997,148.51,148.5,0.3193647]
[1726812402112,30.886854,148.51,148.5,0.3193647]
[1726812410198,6.733,148.53,148.5,0.3193647]
[1726812411318,6.7332,148.52,148.5,0.3193647]
[1726812412030,0.25098,148.51,148.5,0.3193647]
[1726812417020,23.902374,148.54,148.5,0.3193647]
[1726812417223,6.7331,148.52,148.5,0.3193647]
[1726812417429,7.00210474,148.57,148.5,0.3193647]
[1726812417631,6.7317,148.55,148.5,7.0532647]
[1726812419142,6.7323,148.54,148.5,0.3193647]
[1726812420017,6.7318,148.55,148.5,7.0532647]
[1726812422935,6.7326,148.53,148.5,0.3193647]
[1726812423451,0.25098,148.54,148.5,0.3193647]
[1726812423820,6.7322,148.54,148.5,0.3193647]
[1726812424445,6.7335,148.51,148.5,0.3193647]
[1726812424650,6.85899,148.51,148.5,0.3193647]
[1726812424821,7.10997,148.51,148.5,0.3193647]
[1726812425220,0.37647,148.51,148.5,0.3193647]
[1726812425443,20.0,148.56,148.5,0.3193647]
[1726812425649,7.10857,148.55,148.5,0.3193647]
[1726812425846,6.7321,148.55,148.5,0.3193647]
[1726812426148,20.0,148.58,148.5,17.1532647]
[1726812426648,36.8268,148.58,148.5,0.3193647]
[1726812426952,6.7328,148.53,148.5,0.3193647]
[1726812427242,36.8268,148.58,148.5,0.3193647]
[1726812427453,6.7331,148.52,148.5,0.3193647]
[1726812428023,6.7335,148.51,148.5,0.3193647]
[1726812428325,7.10997,148.51,148.5,0.3193647]
[1726812428649,6.7331,148.52,148.5,0.3193647]
[1726812429227,0.25098,148.53,148.5,0.3193647]
[1726812429228,6.7335,148.51,148.5,0.3193647]
[1726812429743,23.776884,148.57,148.5,0.3193647]
[1726812429935,6.7313,148.56,148.51,6.7334]
[1726812430430,16.8227,148.61,148.52,6.7327]
[1726812430840,6.7312,148.57,148.51,6.7335]
[1726812431343,7.10777,148.56,148.51,6.7335]
[1726812431844,6.7313,148.56,148.51,6.7335]
[1726812432158,6.7308,148.58,148.52,8.07935066]
[1726812432565,6.7299,148.59,148.54,6.7321]
[1726812432750,16.6499,148.63,148.55,1.34609153]
[1726812433662,23.4592,148.64,148.55,1.34609153]
[1726812433663,6.7285,148.62,148.57,6.7307]
[1726812434738,23.28447828,148.67,148.56,15.9879]
[1726812434943,23.28447828,148.67,148.57,18.17165511]
[1726812435144,6.977206,148.67,148.59,16.8238]
[1726812435346,6.977206,148.67,148.57,19.04062489]
[1726812435347,0.250906,148.67,148.64,6.7275]
[1726812435766,0.250906,148.67,148.65,8.07233722]
[1726812436063,0.250906,148.67,148.64,6.2864]
[1726812436241,0.250906,148.67,148.64,13.0139]
[1726812439364,0.250906,148.67,148.64,6.2864]
[1726812441244,0.250906,148.67,148.63,21.7997]
[1726812443272,6.977306,148.67,148.62,16.8214]
[1726812443567,6.977206,148.67,148.62,16.8214]
[1726812444377,0.250906,148.67,148.62,16.8214]
[1726812444844,6.977406,148.67,148.62,23.5499]
[1726812445045,6.7269,148.66,148.62,16.8214]
[1726812445474,6.7272,148.65,148.59,16.3954]
[1726812445970,6.7282,148.63,148.58,23.5552]
[1726812446268,6.7276,148.64,148.59,6.7298]
[1726812450901,0.37647,148.66,148.58,16.8249]
[1726812451053,7.10327,148.66,148.61,6.7289]
[1726812453187,6.7272,148.65,148.6,23.5521]
[1726812454187,6.7276,148.64,148.6,16.8227]
[1726812454560,6.7276,148.64,148.61,1.34563027]
[1726812454785,6.7276,148.64,148.6,16.8227]
[1726812456582,0.250906,148.67,148.61,1.34557086]
[1726812456977,0.250906,148.67,148.63,6.7277]
[1726812457468,0.250906,148.67,148.62,16.8204]
[1726812457469,6.977306,148.67,148.62,23.5489]
[1726812457885,0.250906,148.67,148.58,33.6506]
[1726812458073,0.250906,148.67,148.64,16.8181]
[1726812458687,0.250906,148.67,148.61,32.2591]
[1726812460391,60.78836542,148.75,148.68,0.25098]
[1726812460392,6.99296542,148.75,148.68,0.25098]
[1726812460600,6.99296542,148.75,148.74,45.76372489]
[1726812460887,22.4777246,148.86,148.76,6.7222]
[1726812461061,22.4777246,148.86,148.76,70.03064687]
[1726812461266,7.0713246,148.86,148.76,76.20384687]
[1726812461565,6.7182,148.85,148.76,60.0040933]
[1726812461772,0.3536246,148.86,148.76,32.8954]
[1726812461991,6.7181,148.85,148.76,32.8954]
[1726812462900,6.7192,148.83,148.76,32.8954]
[1726812463274,6.7186,148.84,148.76,32.8954]
[1726812464377,6.7186,148.84,148.76,12.8954]
[1726812464600,7.0717246,148.86,148.76,32.8954]
[1726812464770,6.7186,148.85,148.76,32.8954]
[1726812465184,6.7188,148.84,148.76,32.8954]